[Event "Titled Tuesday Blitz January 31 Early 2023"]
[White "Zahid, Sanatan"]
[Black "Ter-Sahakyan, Samvel"]
[WhiteFideId "10201963"]
[BlackFideId "13302531"]
[WhiteElo "1930"]
[BlackElo "2617"]
[Result "1/2-1/2"]
[Round "11"]
[TimeControl "180+2"]
[Date "2023.01.31"]
[WhiteClock "0:00:20"]
[BlackClock "0:00:05"]

1. d4 {[%clk 0:02:57]}  Nf6 {[%clk 0:02:59]} 2. Nc3 {[%clk 0:02:56]}  d5 {[%clk 0:02:59]} 3. Bf4 {[%clk 0:02:56]}  c5 {[%clk 0:02:59]} 4. e4 {[%clk 0:02:56]}  Nxe4 {[%clk 0:02:57]} 5. Nxe4 {[%clk 0:02:56]}  dxe4 {[%clk 0:02:58]} 6. dxc5 {[%clk 0:02:57]}  Nd7 {[%clk 0:02:57]} 7. b4 {[%clk 0:02:55]}  e5 {[%clk 0:02:52]} 8. Be3 {[%clk 0:02:55]}  b6 {[%clk 0:02:34]} 9. Qd5 {[%clk 0:02:39]}  Rb8 {[%clk 0:02:28]} 10. Qxe4 {[%clk 0:02:38]}  bxc5 {[%clk 0:02:24]} 11. b5 {[%clk 0:02:36]}  Be7 {[%clk 0:02:06]} 12. Nf3 {[%clk 0:02:35]}  Bb7 {[%clk 0:01:57]} 13. Qg4 {[%clk 0:02:34]}  O-O {[%clk 0:01:54]} 14. Rd1 {[%clk 0:02:30]}  Nf6 {[%clk 0:01:52]} 15. Qa4 {[%clk 0:02:23]}  Qc7 {[%clk 0:01:49]} 16. Bc4 {[%clk 0:02:21]}  e4 {[%clk 0:01:44]} 17. Nd2 {[%clk 0:02:19]}  Ng4 {[%clk 0:01:44]} 18. Nf1 {[%clk 0:02:16]}  Kh8 {[%clk 0:01:32]} 19. h3 {[%clk 0:02:12]}  Ne5 {[%clk 0:01:32]} 20. Nd2 {[%clk 0:02:11]}  f5 {[%clk 0:01:32]} 21. Bf4 {[%clk 0:01:58]}  Nf3+ {[%clk 0:01:32]} 22. Nxf3 {[%clk 0:01:55]}  Qxf4 {[%clk 0:01:32]} 23. Bd5 {[%clk 0:01:47]}  Bxd5 {[%clk 0:01:18]} 24. Rxd5 {[%clk 0:01:48]}  Qc1+ {[%clk 0:01:13]} 25. Rd1 {[%clk 0:01:46]}  Qb2 {[%clk 0:01:13]} 26. Nd2 {[%clk 0:01:42]}  Qxb5 {[%clk 0:01:12]} 27. Qxb5 {[%clk 0:01:42]}  Rxb5 {[%clk 0:01:13]} 28. Nc4 {[%clk 0:01:36]}  Rb4 {[%clk 0:01:13]} 29. Ne5 {[%clk 0:01:37]}  Rb2 {[%clk 0:01:08]} 30. O-O {[%clk 0:01:28]}  Rxa2 {[%clk 0:01:04]} 31. c4 {[%clk 0:01:26]}  Rc2 {[%clk 0:00:48]} 32. Rd5 {[%clk 0:01:14]}  Rc8 {[%clk 0:00:48]} 33. Rb1 {[%clk 0:01:11]}  Bf6 {[%clk 0:00:34]} 34. Rxc5 {[%clk 0:01:08]}  Rc1+ {[%clk 0:00:34]} 35. Rxc1 {[%clk 0:00:56]}  Rxc5 {[%clk 0:00:34]} 36. Nd7 {[%clk 0:00:51]}  Rc7 {[%clk 0:00:34]} 37. Nxf6 {[%clk 0:00:51]}  gxf6 {[%clk 0:00:35]} 38. Ra1 {[%clk 0:00:50]}  Kg7 {[%clk 0:00:34]} 39. Ra5 {[%clk 0:00:48]}  Kf7 {[%clk 0:00:34]} 40. g3 {[%clk 0:00:45]}  Ke6 {[%clk 0:00:34]} 41. Ra6+ {[%clk 0:00:43]}  Ke5 {[%clk 0:00:33]} 42. Kg2 {[%clk 0:00:43]}  h5 {[%clk 0:00:25]} 43. h4 {[%clk 0:00:43]}  Rg7 {[%clk 0:00:15]} 44. Ra5+ {[%clk 0:00:40]}  Ke6 {[%clk 0:00:15]} 45. Ra6+ {[%clk 0:00:39]}  Ke5 {[%clk 0:00:16]} 46. Ra5+ {[%clk 0:00:37]}  Ke6 {[%clk 0:00:14]} 47. Kf1 {[%clk 0:00:36]}  Rc7 {[%clk 0:00:13]} 48. Ke2 {[%clk 0:00:36]}  Rxc4 {[%clk 0:00:13]} 49. Rxa7 {[%clk 0:00:34]}  f4 {[%clk 0:00:13]} 50. Ra5 {[%clk 0:00:29]}  Rc2+ {[%clk 0:00:12]} 51. Kf1 {[%clk 0:00:26]}  fxg3 {[%clk 0:00:12]} 52. fxg3 {[%clk 0:00:26]}  f5 {[%clk 0:00:13]} 53. Ke1 {[%clk 0:00:21]}  Rg2 {[%clk 0:00:12]} 54. Ra3 {[%clk 0:00:21]}  Ke5 {[%clk 0:00:13]} 55. Kf1 {[%clk 0:00:22]}  Rd2 {[%clk 0:00:12]} 56. Ke1 {[%clk 0:00:22]}  Rd3 {[%clk 0:00:12]} 57. Ra5+ {[%clk 0:00:21]}  Rd5 {[%clk 0:00:11]} 58. Ra3 {[%clk 0:00:21]}  Kd4 {[%clk 0:00:11]} 59. Ke2 {[%clk 0:00:21]}  Rc5 {[%clk 0:00:11]} 60. Ra4+ {[%clk 0:00:21]}  Rc4 {[%clk 0:00:12]} 61. Ra5 {[%clk 0:00:21]}  Rc2+ {[%clk 0:00:12]} 62. Kf1 {[%clk 0:00:21]}  Rc3 {[%clk 0:00:08]} 63. Kf2 {[%clk 0:00:20]}  Rf3+ {[%clk 0:00:08]} 64. Ke2 {[%clk 0:00:19]}  Rxg3 {[%clk 0:00:08]} 65. Rxf5 {[%clk 0:00:19]}  Rg2+ {[%clk 0:00:08]} 66. Kf1 {[%clk 0:00:20]}  Rh2 {[%clk 0:00:08]} 67. Rxh5 {[%clk 0:00:20]}  Ke3 {[%clk 0:00:08]} 68. Rh8 {[%clk 0:00:20]}  Kd2 {[%clk 0:00:05]} 69. Rd8+ {[%clk 0:00:19]}  Ke3 {[%clk 0:00:05]} 70. Rh8 {[%clk 0:00:19]}  Kf3 {[%clk 0:00:05]} 71. Rf8+ {[%clk 0:00:19]}  Kg3 {[%clk 0:00:06]} 72. Rg8+ {[%clk 0:00:20]}  Kf4 {[%clk 0:00:05]} 73. Rf8+ {[%clk 0:00:19]}  Ke3 {[%clk 0:00:05]} 74. Rh8 {[%clk 0:00:20]} 1/2-1/2


[Site "https://www.chess.com"]

[Event "Titled Tuesday Blitz January 31 Early 2023"]
[White "Fernandez Guillen, Ernesto J."]
[Black "Samunenkov, Ihor"]
[WhiteFideId "3512428"]
[BlackFideId "14187086"]
[WhiteElo "2477"]
[BlackElo "2501"]
[Result "1/2-1/2"]
[Round "11"]
[TimeControl "180+2"]
[Date "2023.01.31"]
[WhiteClock "0:00:06"]
[BlackClock "0:00:07"]

1. e4 {[%clk 0:03:00]}  c5 {[%clk 0:02:59]} 2. Nf3 {[%clk 0:03:00]}  Nc6 {[%clk 0:03:00]} 3. Nc3 {[%clk 0:02:56]}  g6 {[%clk 0:02:57]} 4. d4 {[%clk 0:02:55]}  cxd4 {[%clk 0:02:58]} 5. Nxd4 {[%clk 0:02:55]}  Bg7 {[%clk 0:02:59]} 6. Be3 {[%clk 0:02:56]}  Nf6 {[%clk 0:02:59]} 7. Bc4 {[%clk 0:02:56]}  O-O {[%clk 0:02:58]} 8. Bb3 {[%clk 0:02:57]}  Re8 {[%clk 0:02:59]} 9. f3 {[%clk 0:02:55]}  e6 {[%clk 0:02:53]} 10. Nxc6 {[%clk 0:02:37]}  bxc6 {[%clk 0:02:47]} 11. Qd6 {[%clk 0:02:33]}  Bf8 {[%clk 0:02:41]} 12. Qg3 {[%clk 0:02:32]}  d5 {[%clk 0:02:37]} 13. O-O-O {[%clk 0:02:28]}  Bg7 {[%clk 0:02:27]} 14. f4 {[%clk 0:02:03]}  Nh5 {[%clk 0:02:04]} 15. Qe1 {[%clk 0:02:02]}  d4 {[%clk 0:01:50]} 16. e5 {[%clk 0:01:54]}  c5 {[%clk 0:01:39]} 17. Ne4 {[%clk 0:01:46]}  Qc7 {[%clk 0:01:29]} 18. Nd6 {[%clk 0:01:38]}  Rd8 {[%clk 0:01:17]} 19. g4 {[%clk 0:01:38]}  dxe3 {[%clk 0:01:09]} 20. gxh5 {[%clk 0:01:37]}  Bb7 {[%clk 0:01:00]} 21. Rg1 {[%clk 0:01:25]}  Bf3 {[%clk 0:00:53]} 22. Rd3 {[%clk 0:01:24]}  Bxh5 {[%clk 0:00:51]} 23. Qxe3 {[%clk 0:01:13]}  a5 {[%clk 0:00:44]} 24. c4 {[%clk 0:01:12]}  a4 {[%clk 0:00:43]} 25. Bd1 {[%clk 0:01:13]}  Bxd1 {[%clk 0:00:40]} 26. Rgxd1 {[%clk 0:01:13]}  Bf8 {[%clk 0:00:36]} 27. Ne4 {[%clk 0:01:09]}  Be7 {[%clk 0:00:34]} 28. Rxd8+ {[%clk 0:01:00]}  Rxd8 {[%clk 0:00:35]} 29. Rxd8+ {[%clk 0:01:00]}  Qxd8 {[%clk 0:00:35]} 30. Nxc5 {[%clk 0:00:58]}  Qc7 {[%clk 0:00:32]} 31. Nxa4 {[%clk 0:00:57]}  Qxc4+ {[%clk 0:00:31]} 32. Nc3 {[%clk 0:00:57]}  Bc5 {[%clk 0:00:23]} 33. Qf3 {[%clk 0:00:20]}  Bd4 {[%clk 0:00:22]} 34. Qe4 {[%clk 0:00:20]}  Qc5 {[%clk 0:00:15]} 35. Kc2 {[%clk 0:00:18]}  Kg7 {[%clk 0:00:07]} 36. a4 {[%clk 0:00:16]}  h5 {[%clk 0:00:06]} 37. Kd3 {[%clk 0:00:14]}  Bg1 {[%clk 0:00:05]} 38. h3 {[%clk 0:00:12]}  Qb6 {[%clk 0:00:04]} 39. Nb5 {[%clk 0:00:11]}  Qa5 {[%clk 0:00:04]} 40. Nd6 {[%clk 0:00:08]}  Bc5 {[%clk 0:00:03]} 41. Nb5 {[%clk 0:00:07]}  Qd8+ {[%clk 0:00:03]} 42. Kc2 {[%clk 0:00:06]}  Bb6 {[%clk 0:00:03]} 43. Qc6 {[%clk 0:00:06]}  Ba5 {[%clk 0:00:02]} 44. Nd6 {[%clk 0:00:06]}  Qh4 {[%clk 0:00:01]} 45. Ne8+ {[%clk 0:00:05]}  Kf8 {[%clk 0:00:02]} 46. Nf6 {[%clk 0:00:05]}  Qf2+ {[%clk 0:00:02]} 47. Kb3 {[%clk 0:00:05]}  Qe3+ {[%clk 0:00:01]} 48. Ka2 {[%clk 0:00:05]}  Qxf4 {[%clk 0:00:01]} 49. Qa8+ {[%clk 0:00:05]}  Kg7 {[%clk 0:00:02]} 50. Qxa5 {[%clk 0:00:04]}  Qc4+ {[%clk 0:00:02]} 51. b3 {[%clk 0:00:04]}  Qc2+ {[%clk 0:00:02]} 52. Ka3 {[%clk 0:00:05]}  Qc1+ {[%clk 0:00:03]} 53. Kb4 {[%clk 0:00:05]}  Qe1+ {[%clk 0:00:03]} 54. Kb5 {[%clk 0:00:05]}  Qxe5+ {[%clk 0:00:04]} 55. Ka6 {[%clk 0:00:06]}  Qxf6 {[%clk 0:00:04]} 56. Qc5 {[%clk 0:00:06]}  e5+ {[%clk 0:00:04]} 57. Kb5 {[%clk 0:00:06]}  e4 {[%clk 0:00:05]} 58. a5 {[%clk 0:00:06]}  Qf1+ {[%clk 0:00:03]} 59. Kb6 {[%clk 0:00:06]}  Qd3 {[%clk 0:00:04]} 60. b4 {[%clk 0:00:05]}  e3 {[%clk 0:00:04]} 61. a6 {[%clk 0:00:06]}  e2 {[%clk 0:00:04]} 62. Qe5+ {[%clk 0:00:06]}  f6 {[%clk 0:00:04]} 63. Qe7+ {[%clk 0:00:06]}  Kh6 {[%clk 0:00:05]} 64. a7 {[%clk 0:00:07]}  Qd4+ {[%clk 0:00:05]} 65. Kb5 {[%clk 0:00:06]}  Qd5+ {[%clk 0:00:04]} 66. Kb6 {[%clk 0:00:06]}  Qd4+ {[%clk 0:00:03]} 67. Kb7 {[%clk 0:00:04]}  Qd5+ {[%clk 0:00:02]} 68. Kb8 {[%clk 0:00:04]}  Qe5+ {[%clk 0:00:02]} 69. Qxe5 {[%clk 0:00:04]}  fxe5 {[%clk 0:00:03]} 70. a8=Q {[%clk 0:00:04]}  e1=Q {[%clk 0:00:04]} 71. b5 {[%clk 0:00:03]}  e4 {[%clk 0:00:03]} 72. Kc7 {[%clk 0:00:02]}  Qc3+ {[%clk 0:00:03]} 73. Kb6 {[%clk 0:00:02]}  Qd4+ {[%clk 0:00:03]} 74. Kc7 {[%clk 0:00:01]}  Qe5+ {[%clk 0:00:03]} 75. Kb6 {[%clk 0:00:02]}  e3 {[%clk 0:00:03]} 76. Qh1 {[%clk 0:00:01]}  e2 {[%clk 0:00:03]} 77. Qc1+ {[%clk 0:00:01]}  g5 {[%clk 0:00:02]} 78. Qe1 {[%clk 0:00:01]}  Qd4+ {[%clk 0:00:02]} 79. Ka6 {[%clk 0:00:02]}  Qd1 {[%clk 0:00:03]} 80. Qf2 {[%clk 0:00:02]}  e1=Q {[%clk 0:00:03]} 81. Qf6+ {[%clk 0:00:02]}  Kh7 {[%clk 0:00:04]} 82. Qf7+ {[%clk 0:00:03]}  Kh8 {[%clk 0:00:04]} 83. Qf8+ {[%clk 0:00:04]}  Kh7 {[%clk 0:00:05]} 84. Qf7+ {[%clk 0:00:05]}  Kh6 {[%clk 0:00:06]} 85. Qf6+ {[%clk 0:00:05]}  Kh7 {[%clk 0:00:07]} 86. Qf7+ {[%clk 0:00:06]} 1/2-1/2


[Site "https://www.chess.com"]

[Event "Titled Tuesday Blitz January 31 Early 2023"]
[White "Jakubowski, Krzysztof"]
[Black "Kazakouski, Valery"]
[WhiteFideId "1112848"]
[BlackFideId "13507443"]
[WhiteElo "2486"]
[BlackElo "2539"]
[Result "0-1"]
[Round "11"]
[TimeControl "180+2"]
[Date "2023.01.31"]
[WhiteClock "0:01:13"]
[BlackClock "0:01:55"]

1. e4 {[%clk 0:02:53]}  c5 {[%clk 0:02:59]} 2. Nf3 {[%clk 0:02:51]}  a6 {[%clk 0:03:00]} 3. Nc3 {[%clk 0:02:49]}  e6 {[%clk 0:02:59]} 4. d4 {[%clk 0:02:49]}  b5 {[%clk 0:02:52]} 5. d5 {[%clk 0:02:47]}  d6 {[%clk 0:02:52]} 6. a4 {[%clk 0:02:43]}  b4 {[%clk 0:02:52]} 7. Nb1 {[%clk 0:02:43]}  exd5 {[%clk 0:02:52]} 8. exd5 {[%clk 0:02:40]}  Nf6 {[%clk 0:02:52]} 9. Bc4 {[%clk 0:02:29]}  Be7 {[%clk 0:02:52]} 10. O-O {[%clk 0:02:29]}  O-O {[%clk 0:02:52]} 11. a5 {[%clk 0:02:26]}  Bg4 {[%clk 0:02:51]} 12. h3 {[%clk 0:02:26]}  Bh5 {[%clk 0:02:52]} 13. Re1 {[%clk 0:02:24]}  Re8 {[%clk 0:02:50]} 14. Bf4 {[%clk 0:02:23]}  Nbd7 {[%clk 0:02:48]} 15. Qd3 {[%clk 0:02:22]}  Bg6 {[%clk 0:02:47]} 16. Qb3 {[%clk 0:02:19]}  Bf8 {[%clk 0:02:41]} 17. Rxe8 {[%clk 0:02:16]}  Qxe8 {[%clk 0:02:42]} 18. Nbd2 {[%clk 0:02:16]}  h6 {[%clk 0:02:37]} 19. Re1 {[%clk 0:02:13]}  Qd8 {[%clk 0:02:37]} 20. Qa4 {[%clk 0:02:14]}  Ra7 {[%clk 0:02:27]} 21. Nf1 {[%clk 0:02:02]}  Be4 {[%clk 0:02:19]} 22. Rd1 {[%clk 0:01:42]}  Bxf3 {[%clk 0:02:18]} 23. gxf3 {[%clk 0:01:43]}  Nh5 {[%clk 0:02:17]} 24. Bh2 {[%clk 0:01:40]}  Qh4 {[%clk 0:02:16]} 25. Kg2 {[%clk 0:01:23]}  Qxc4 {[%clk 0:02:12]} 26. Qc6 {[%clk 0:01:20]}  Nf4+ {[%clk 0:01:54]} 27. Bxf4 {[%clk 0:01:17]}  Qxf4 {[%clk 0:01:55]} 28. Ng3 {[%clk 0:01:13]}  Ne5 {[%clk 0:01:55]} 0-1


[Site "https://www.chess.com"]

[Event "Titled Tuesday Blitz January 31 Early 2023"]
[White "Sychev, Klementy"]
[Black "Shipov, Sergei"]
[WhiteFideId "4114060"]
[BlackFideId "4113624"]
[WhiteElo "2547"]
[BlackElo "2541"]
[Result "0-1"]
[Round "11"]
[TimeControl "180+2"]
[Date "2023.01.31"]
[WhiteClock "0:00:03"]
[BlackClock "0:00:18"]

1. d4 {[%clk 0:02:58]}  d5 {[%clk 0:03:00]} 2. c4 {[%clk 0:02:57]}  dxc4 {[%clk 0:03:01]} 3. Nf3 {[%clk 0:02:53]}  Nf6 {[%clk 0:03:00]} 4. e3 {[%clk 0:02:54]}  e6 {[%clk 0:03:01]} 5. Bxc4 {[%clk 0:02:54]}  c5 {[%clk 0:03:02]} 6. O-O {[%clk 0:02:53]}  Nc6 {[%clk 0:03:03]} 7. Nc3 {[%clk 0:02:53]}  a6 {[%clk 0:03:02]} 8. d5 {[%clk 0:02:53]}  Na5 {[%clk 0:02:50]} 9. b3 {[%clk 0:02:53]}  b5 {[%clk 0:02:49]} 10. Bd3 {[%clk 0:02:51]}  Nxd5 {[%clk 0:02:43]} 11. Nxd5 {[%clk 0:02:51]}  exd5 {[%clk 0:02:43]} 12. Bb2 {[%clk 0:02:51]}  Bb7 {[%clk 0:02:40]} 13. Qc2 {[%clk 0:02:47]}  Nc6 {[%clk 0:02:25]} 14. Bxh7 {[%clk 0:02:33]}  Qc7 {[%clk 0:02:06]} 15. Rad1 {[%clk 0:02:24]}  O-O-O {[%clk 0:02:01]} 16. a3 {[%clk 0:02:06]}  Kb8 {[%clk 0:01:59]} 17. Rfe1 {[%clk 0:02:02]}  f6 {[%clk 0:01:46]} 18. Bf5 {[%clk 0:01:58]}  Bd6 {[%clk 0:01:46]} 19. h3 {[%clk 0:01:56]}  Ne5 {[%clk 0:01:46]} 20. Bxe5 {[%clk 0:01:43]}  fxe5 {[%clk 0:01:44]} 21. e4 {[%clk 0:01:20]}  g6 {[%clk 0:01:34]} 22. Bg4 {[%clk 0:01:13]}  d4 {[%clk 0:01:31]} 23. Nd2 {[%clk 0:01:13]}  Be7 {[%clk 0:01:21]} 24. a4 {[%clk 0:01:12]}  Bc6 {[%clk 0:01:10]} 25. axb5 {[%clk 0:01:10]}  axb5 {[%clk 0:01:10]} 26. Be2 {[%clk 0:01:08]}  Kb7 {[%clk 0:01:10]} 27. Bd3 {[%clk 0:01:03]}  Ra8 {[%clk 0:01:08]} 28. Nf1 {[%clk 0:00:59]}  Qa5 {[%clk 0:01:02]} 29. b4 {[%clk 0:00:44]}  Qa4 {[%clk 0:00:31]} 30. bxc5 {[%clk 0:00:43]}  Qxc2 {[%clk 0:00:30]} 31. Bxc2 {[%clk 0:00:43]}  Bxc5 {[%clk 0:00:31]} 32. Bd3 {[%clk 0:00:41]}  Ra3 {[%clk 0:00:30]} 33. Re2 {[%clk 0:00:39]}  b4 {[%clk 0:00:28]} 34. Rc2 {[%clk 0:00:18]}  Rc3 {[%clk 0:00:27]} 35. Rb2 {[%clk 0:00:18]}  Ra8 {[%clk 0:00:27]} 36. Bb1 {[%clk 0:00:16]}  Ba4 {[%clk 0:00:23]} 37. Re1 {[%clk 0:00:16]}  b3 {[%clk 0:00:23]} 38. Nh2 {[%clk 0:00:14]}  Ba3 {[%clk 0:00:23]} 39. Rbe2 {[%clk 0:00:13]}  b2 {[%clk 0:00:23]} 40. Nf3 {[%clk 0:00:14]}  Rc1 {[%clk 0:00:23]} 41. Nxe5 {[%clk 0:00:12]}  Bb5 {[%clk 0:00:22]} 42. Nd3 {[%clk 0:00:10]}  Rxb1 {[%clk 0:00:21]} 43. Rxb1 {[%clk 0:00:10]}  Bxd3 {[%clk 0:00:22]} 44. Rexb2+ {[%clk 0:00:10]}  Bxb2 {[%clk 0:00:21]} 45. Rxb2+ {[%clk 0:00:10]}  Kc6 {[%clk 0:00:22]} 46. Rd2 {[%clk 0:00:09]}  Ra3 {[%clk 0:00:22]} 47. f3 {[%clk 0:00:09]}  Kc5 {[%clk 0:00:22]} 48. h4 {[%clk 0:00:05]}  Kc4 {[%clk 0:00:21]} 49. g4 {[%clk 0:00:05]}  Kc3 {[%clk 0:00:22]} 50. Rf2 {[%clk 0:00:03]}  Bc4 {[%clk 0:00:21]} 51. h5 {[%clk 0:00:03]}  gxh5 {[%clk 0:00:20]} 52. gxh5 {[%clk 0:00:04]}  d3 {[%clk 0:00:21]} 53. h6 {[%clk 0:00:04]}  Ra6 {[%clk 0:00:20]} 54. h7 {[%clk 0:00:04]}  Rh6 {[%clk 0:00:19]} 55. Rh2 {[%clk 0:00:04]}  Rxh2 {[%clk 0:00:17]} 56. Kxh2 {[%clk 0:00:03]}  d2 {[%clk 0:00:17]} 57. h8=Q+ {[%clk 0:00:03]}  Kc2 {[%clk 0:00:18]} 0-1


[Site "https://www.chess.com"]

[Event "Titled Tuesday Blitz January 31 Early 2023"]
[White "Pakleza, Zbigniew"]
[Black "Szpar, Milosz"]
[WhiteFideId "1119290"]
[BlackFideId "1184989"]
[WhiteElo "2494"]
[BlackElo "2447"]
[Result "0-1"]
[Round "11"]
[TimeControl "180+2"]
[Date "2023.01.31"]
[WhiteClock "0:00:04"]
[BlackClock "0:00:08"]

1. Nf3 {[%clk 0:03:00]}  d5 {[%clk 0:03:00]} 2. c4 {[%clk 0:03:01]}  d4 {[%clk 0:03:00]} 3. e3 {[%clk 0:03:00]}  Nc6 {[%clk 0:03:00]} 4. b4 {[%clk 0:03:00]}  dxe3 {[%clk 0:03:00]} 5. fxe3 {[%clk 0:03:00]}  Nxb4 {[%clk 0:03:01]} 6. Qa4+ {[%clk 0:03:00]}  Nc6 {[%clk 0:03:00]} 7. d4 {[%clk 0:03:00]}  Bd7 {[%clk 0:02:58]} 8. Qb3 {[%clk 0:02:54]}  e5 {[%clk 0:02:23]} 9. d5 {[%clk 0:02:54]}  Na5 {[%clk 0:02:13]} 10. Qc3 {[%clk 0:02:48]}  e4 {[%clk 0:02:13]} 11. Ne5 {[%clk 0:02:22]}  b6 {[%clk 0:02:13]} 12. Be2 {[%clk 0:02:10]}  Nf6 {[%clk 0:02:09]} 13. O-O {[%clk 0:02:06]}  Bd6 {[%clk 0:02:09]} 14. Nxd7 {[%clk 0:02:06]}  Qxd7 {[%clk 0:02:09]} 15. Na3 {[%clk 0:01:47]}  Qe7 {[%clk 0:01:59]} 16. Bb2 {[%clk 0:01:40]}  c6 {[%clk 0:01:42]} 17. c5 {[%clk 0:01:09]}  Bxc5 {[%clk 0:01:32]} 18. dxc6 {[%clk 0:01:09]}  Nxc6 {[%clk 0:01:19]} 19. Bb5 {[%clk 0:00:57]}  Rc8 {[%clk 0:01:19]} 20. Nc4 {[%clk 0:00:55]}  O-O {[%clk 0:01:15]} 21. Kh1 {[%clk 0:00:51]}  Nb4 {[%clk 0:01:12]} 22. Ne5 {[%clk 0:00:21]}  Nbd5 {[%clk 0:01:07]} 23. Qb3 {[%clk 0:00:16]}  Nxe3 {[%clk 0:01:00]} 24. Nc6 {[%clk 0:00:11]}  Rxc6 {[%clk 0:00:56]} 25. Bxc6 {[%clk 0:00:12]}  Nxf1 {[%clk 0:00:39]} 26. Rxf1 {[%clk 0:00:13]}  Ng4 {[%clk 0:00:22]} 27. Qg3 {[%clk 0:00:10]}  f5 {[%clk 0:00:19]} 28. h3 {[%clk 0:00:08]}  Ne3 {[%clk 0:00:11]} 29. Rc1 {[%clk 0:00:03]}  f4 {[%clk 0:00:10]} 30. Qe1 {[%clk 0:00:02]}  f3 {[%clk 0:00:09]} 31. gxf3 {[%clk 0:00:02]}  exf3 {[%clk 0:00:10]} 32. Qg3 {[%clk 0:00:02]}  f2 {[%clk 0:00:09]} 33. Bd5+ {[%clk 0:00:01]}  Nxd5 {[%clk 0:00:08]} 34. Rf1 {[%clk 0:00:01]}  Ne3 {[%clk 0:00:08]} 35. Rxf2 {[%clk 0:00:01]}  Rxf2 {[%clk 0:00:08]} 36. Qxf2 {[%clk 0:00:02]}  Qb7+ {[%clk 0:00:07]} 37. Kh2 {[%clk 0:00:02]}  Ng4+ {[%clk 0:00:08]} 38. hxg4 {[%clk 0:00:03]}  Bxf2 {[%clk 0:00:08]} 39. Be5 {[%clk 0:00:04]}  Bc5 {[%clk 0:00:08]} 0-1


[Site "https://www.chess.com"]

[Event "Titled Tuesday Blitz January 31 Early 2023"]
[White "Avila Pavas, Santiago"]
[Black "Klose, Eli"]
[WhiteFideId "4437128"]
[BlackFideId "16242955"]
[WhiteElo "2522"]
[BlackElo "1519"]
[Result "1-0"]
[Round "11"]
[TimeControl "180+2"]
[Date "2023.01.31"]
[WhiteClock "0:00:30"]
[BlackClock "0:00:02"]

1. d4 {[%clk 0:03:00]}  Nf6 {[%clk 0:02:59]} 2. Nf3 {[%clk 0:03:01]}  c5 {[%clk 0:02:59]} 3. d5 {[%clk 0:03:01]}  b5 {[%clk 0:02:59]} 4. Bg5 {[%clk 0:03:01]}  Ne4 {[%clk 0:02:59]} 5. Bf4 {[%clk 0:03:00]}  Bb7 {[%clk 0:02:59]} 6. Qd3 {[%clk 0:02:58]}  Qa5+ {[%clk 0:02:54]} 7. c3 {[%clk 0:02:56]}  Nf6 {[%clk 0:02:32]} 8. e4 {[%clk 0:02:55]}  c4 {[%clk 0:02:32]} 9. Qd4 {[%clk 0:02:51]}  d6 {[%clk 0:02:31]} 10. a4 {[%clk 0:02:42]}  a6 {[%clk 0:02:25]} 11. Be2 {[%clk 0:02:36]}  Nbd7 {[%clk 0:02:23]} 12. O-O {[%clk 0:02:35]}  g6 {[%clk 0:02:12]} 13. Na3 {[%clk 0:02:29]}  Bg7 {[%clk 0:01:43]} 14. axb5 {[%clk 0:02:27]}  axb5 {[%clk 0:01:37]} 15. Nc2 {[%clk 0:02:12]}  Qd8 {[%clk 0:01:36]} 16. Rxa8 {[%clk 0:02:10]}  Qxa8 {[%clk 0:01:37]} 17. Ra1 {[%clk 0:02:09]}  Qc8 {[%clk 0:01:33]} 18. Qe3 {[%clk 0:01:41]}  Nc5 {[%clk 0:01:20]} 19. Nd2 {[%clk 0:01:41]}  O-O {[%clk 0:01:04]} 20. Nd4 {[%clk 0:01:41]}  Qd7 {[%clk 0:01:02]} 21. Bh6 {[%clk 0:01:42]}  Bxh6 {[%clk 0:00:52]} 22. Qxh6 {[%clk 0:01:41]}  Nfxe4 {[%clk 0:00:53]} 23. Nxe4 {[%clk 0:01:23]}  Nxe4 {[%clk 0:00:54]} 24. Ra5 {[%clk 0:01:22]}  Bxd5 {[%clk 0:00:45]} 25. Rxb5 {[%clk 0:01:22]}  Nf6 {[%clk 0:00:40]} 26. h4 {[%clk 0:01:13]}  e5 {[%clk 0:00:37]} 27. Qg5 {[%clk 0:00:44]}  exd4 {[%clk 0:00:15]} 28. Qxf6 {[%clk 0:00:44]}  Qxb5 {[%clk 0:00:16]} 29. h5 {[%clk 0:00:41]}  Qxb2 {[%clk 0:00:16]} 30. f4 {[%clk 0:00:34]}  Qc1+ {[%clk 0:00:15]} 31. Kh2 {[%clk 0:00:34]}  h6 {[%clk 0:00:06]} 32. hxg6 {[%clk 0:00:34]}  Qe3 {[%clk 0:00:03]} 33. g7 {[%clk 0:00:31]}  Re8 {[%clk 0:00:02]} 34. Qxh6 {[%clk 0:00:31]}  Qxf4+ {[%clk 0:00:03]} 35. Qxf4 {[%clk 0:00:31]}  Re7 {[%clk 0:00:02]} 36. Qxd4 {[%clk 0:00:31]}  Re6 {[%clk 0:00:02]} 37. Qxd5 {[%clk 0:00:30]} 1-0


[Site "https://www.chess.com"]